[Event "*** SCC Grand Prix: Titled Tuesday Blitz"]
[Site "Chess.com"]
[Date "2020.10.06"]
[Round "6"]
[White "Rakesh"]
[Black "Koksik_13"]
[Result "1/2-1/2"]
[WhiteElo "2498"]
[BlackElo "2661"]
[TimeControl "180+1"]
[EndTime "11:10:44 PDT"]
[Termination "Game drawn by repetition"]

1. e4 {[%clk 0:03:00.9]} 1... e6 {[%clk 0:02:59.9]} 2. d4 {[%clk 0:02:58.2]}
2... d5 {[%clk 0:03:00.3]} 3. Bd3 {[%clk 0:02:57.3]} 3... Nc6 {[%clk 0:02:59.6]}
4. c3 {[%clk 0:02:53.6]} 4... e5 {[%clk 0:02:57.8]} 5. Nf3 {[%clk 0:02:42.5]}
5... exd4 {[%clk 0:02:46.5]} 6. exd5 {[%clk 0:02:41.3]} 6... Qxd5 {[%clk
0:02:44.2]} 7. O-O {[%clk 0:02:39.7]} 7... Nf6 {[%clk 0:02:37.9]} 8. cxd4 {[%clk
0:02:36.1]} 8... Bg4 {[%clk 0:02:36]} 9. Nc3 {[%clk 0:02:35.3]} 9... Bxf3 {[%clk
0:01:49.3]} 10. Nxd5 {[%clk 0:02:24.2]} 10... Bxd1 {[%clk 0:01:48.5]} 11. Re1+
{[%clk 0:01:41.2]} 11... Be7 {[%clk 0:01:24.8]} 12. Nxc7+ {[%clk 0:01:31.1]}
12... Kd7 {[%clk 0:01:19.1]} 13. Nxa8 {[%clk 0:01:32]} 13... Bg4 {[%clk
0:01:11.9]} 14. Bf4 {[%clk 0:01:08.9]} 14... Rxa8 {[%clk 0:01:08.2]} 15. Rac1
{[%clk 0:01:07.9]} 15... Be6 {[%clk 0:01:06.2]} 16. Be5 {[%clk 0:01:06.6]} 16...
Nd5 {[%clk 0:00:59.4]} 17. Bxg7 {[%clk 0:01:03.6]} 17... Rg8 {[%clk 0:00:59.5]}
18. Be5 {[%clk 0:01:03.6]} 18... Bd6 {[%clk 0:00:54.1]} 19. Bxh7 {[%clk
0:01:02.2]} 19... Rg5 {[%clk 0:00:49.1]} 20. Be4 {[%clk 0:00:32.4]} 20... Nxe5
{[%clk 0:00:27.4]} 21. dxe5 {[%clk 0:00:33.3]} 21... Rxe5 {[%clk 0:00:25.6]} 22.
g3 {[%clk 0:00:31.3]} 22... f5 {[%clk 0:00:10.3]} 23. Bf3 {[%clk 0:00:29.8]}
23... b6 {[%clk 0:00:06.4]} 24. Red1 {[%clk 0:00:25.9]} 24... f4 {[%clk
0:00:05.2]} 25. h4 {[%clk 0:00:25.2]} 25... fxg3 {[%clk 0:00:04.9]} 26. fxg3
{[%clk 0:00:26.1]} 26... Bc5+ {[%clk 0:00:05.3]} 27. Kh2 {[%clk 0:00:26]} 27...
Kd6 {[%clk 0:00:05.7]} 28. Rc2 {[%clk 0:00:25.8]} 28... Re3 {[%clk 0:00:05.9]}
29. Bxd5 {[%clk 0:00:25.5]} 29... Bxd5 {[%clk 0:00:05.9]} 30. Rcd2 {[%clk
0:00:26.1]} 30... Re5 {[%clk 0:00:06.5]} 31. g4 {[%clk 0:00:25.9]} 31... Kc6
{[%clk 0:00:06.7]} 32. Kg3 {[%clk 0:00:25.8]} 32... Bd6 {[%clk 0:00:07]} 33. h5
{[%clk 0:00:21.2]} 33... Re3+ {[%clk 0:00:05]} 34. Kf2 {[%clk 0:00:21]} 34...
Re5 {[%clk 0:00:04.7]} 35. h6 {[%clk 0:00:16.3]} 35... Bc5+ {[%clk 0:00:04.9]}
36. Kg3 {[%clk 0:00:16.2]} 36... Re3+ {[%clk 0:00:05.5]} 37. Kh4 {[%clk
0:00:14.1]} 37... Be7+ {[%clk 0:00:05]} 38. g5 {[%clk 0:00:14.2]} 38... Re4+
{[%clk 0:00:05.1]} 39. Kg3 {[%clk 0:00:13.7]} 39... Bxg5 {[%clk 0:00:04.5]} 40.
Rxd5 {[%clk 0:00:13.4]} 40... Bf4+ {[%clk 0:00:02.6]} 41. Kf3 {[%clk 0:00:13.3]}
41... Rb4 {[%clk 0:00:03]} 42. R5d4 {[%clk 0:00:12.7]} 42... Rxd4 {[%clk
0:00:01.8]} 43. Rxd4 {[%clk 0:00:13.6]} 43... Bxh6 {[%clk 0:00:02.7]} 44. Rd3
{[%clk 0:00:12.7]} 44... Bg7 {[%clk 0:00:03]} 45. b3 {[%clk 0:00:12.8]} 45...
Kc5 {[%clk 0:00:03.6]} 46. Ke2 {[%clk 0:00:12.9]} 46... a5 {[%clk 0:00:04.2]}
47. Kd1 {[%clk 0:00:13.4]} 47... Kb4 {[%clk 0:00:04.8]} 48. Kc2 {[%clk
0:00:14.3]} 48... b5 {[%clk 0:00:05.1]} 49. Kb1 {[%clk 0:00:13.8]} 49... a4
{[%clk 0:00:05.3]} 50. bxa4 {[%clk 0:00:13.5]} 50... bxa4 {[%clk 0:00:05.6]} 51.
Rf3 {[%clk 0:00:13.9]} 51... a3 {[%clk 0:00:05.3]} 52. Kc2 {[%clk 0:00:14.2]}
52... Bb2 {[%clk 0:00:05.7]} 53. Rb3+ {[%clk 0:00:14.4]} 53... Kc4 {[%clk
0:00:05.9]} 54. Rb8 {[%clk 0:00:13.8]} 54... Kc5 {[%clk 0:00:05.7]} 55. Kb3
{[%clk 0:00:12.7]} 55... Kc6 {[%clk 0:00:06]} 56. Kc4 {[%clk 0:00:12.7]} 56...
Kc7 {[%clk 0:00:06.4]} 57. Re8 {[%clk 0:00:12.8]} 57... Kc6 {[%clk 0:00:06.6]}
58. Re4 {[%clk 0:00:13.1]} 58... Kd6 {[%clk 0:00:06.7]} 59. Kd3 {[%clk 0:00:13]}
59... Kd5 {[%clk 0:00:06.8]} 60. Rb4 {[%clk 0:00:12.4]} 60... Kc5 {[%clk
0:00:07.1]} 61. Rb3 {[%clk 0:00:12.8]} 61... Kd5 {[%clk 0:00:06.9]} 62. Rb5+
{[%clk 0:00:13.2]} 62... Kc6 {[%clk 0:00:07.1]} 63. Kc4 {[%clk 0:00:14.1]} 63...
Bc1 {[%clk 0:00:06.4]} 64. Rc5+ {[%clk 0:00:13.7]} 64... Kd6 {[%clk 0:00:06.5]}
65. Kb5 {[%clk 0:00:14.2]} 65... Bb2 {[%clk 0:00:05.4]} 66. Rc4 {[%clk
0:00:14.1]} 66... Kd5 {[%clk 0:00:05.4]} 67. Rg4 {[%clk 0:00:14.3]} 67... Kd6
{[%clk 0:00:05.6]} 68. Kc4 {[%clk 0:00:14.1]} 68... Bc1 {[%clk 0:00:04.2]} 69.
Rg6+ {[%clk 0:00:14]} 69... Ke5 {[%clk 0:00:04.6]} 70. Kd3 {[%clk 0:00:13.7]}
70... Bb2 {[%clk 0:00:04.8]} 71. Rg5+ {[%clk 0:00:13.4]} 71... Kd6 {[%clk
0:00:05.3]} 72. Kc4 {[%clk 0:00:12.5]} 72... Ke6 {[%clk 0:00:05.8]} 73. Rd5
{[%clk 0:00:12.9]} 73... Ke7 {[%clk 0:00:05.7]} 74. Kc5 {[%clk 0:00:12.7]} 74...
Ke6 {[%clk 0:00:06.6]} 75. Kc6 {[%clk 0:00:13.2]} 75... Ke7 {[%clk 0:00:06.3]}
76. Rd2 {[%clk 0:00:12.1]} 76... Bc1 {[%clk 0:00:05.3]} 77. Re2+ {[%clk
0:00:12.6]} 77... Kf6 {[%clk 0:00:05.8]} 78. Kd5 {[%clk 0:00:13.1]} 78... Bb2
{[%clk 0:00:04.9]} 79. Rf2+ {[%clk 0:00:13]} 79... Ke7 {[%clk 0:00:05.2]} 80.
Rf1 {[%clk 0:00:13.3]} 80... Bc3 {[%clk 0:00:05.6]} 81. Rf3 {[%clk 0:00:13.7]}
81... Bb2 {[%clk 0:00:05.8]} 82. Rf2 {[%clk 0:00:14.1]} 82... Bc1 {[%clk
0:00:05.3]} 83. Rf3 {[%clk 0:00:14.1]} 83... Bb2 {[%clk 0:00:05.4]} 84. Re3+
{[%clk 0:00:14.1]} 84... Kf6 {[%clk 0:00:05.6]} 85. Re2 {[%clk 0:00:13.4]} 85...
Bc1 {[%clk 0:00:05.6]} 86. Rf2+ {[%clk 0:00:11.8]} 86... Ke7 {[%clk 0:00:06]}
87. Ke5 {[%clk 0:00:08.8]} 87... Bb2+ {[%clk 0:00:06.4]} 88. Kd5 {[%clk
0:00:09.3]} 88... Bc1 {[%clk 0:00:06.1]} 1/2-1/2

[Event "*** SCC Grand Prix: Titled Tuesday Blitz"]
[Site "Chess.com"]
[Date "2020.10.06"]
[Round "6"]
[White "xamax2000"]
[Black "Aleksey_Sorokin"]
[Result "1/2-1/2"]
[WhiteElo "2668"]
[BlackElo "2816"]
[TimeControl "180+1"]
[EndTime "11:11:23 PDT"]
[Termination "Game drawn by stalemate"]

1. d4 {[%clk 0:03:00.9]} 1... Nf6 {[%clk 0:02:59.6]} 2. c4 {[%clk 0:03:01.3]}
2... g6 {[%clk 0:03:00.5]} 3. Nc3 {[%clk 0:03:01.5]} 3... d5 {[%clk 0:03:01.4]}
4. Nf3 {[%clk 0:03:00.4]} 4... Bg7 {[%clk 0:03:01.2]} 5. h4 {[%clk 0:02:59.8]}
5... c6 {[%clk 0:02:59.7]} 6. cxd5 {[%clk 0:02:57.7]} 6... cxd5 {[%clk
0:02:59.5]} 7. Bf4 {[%clk 0:02:58]} 7... Nc6 {[%clk 0:02:59.7]} 8. e3 {[%clk
0:02:57.2]} 8... O-O {[%clk 0:02:59.7]} 9. Qb3 {[%clk 0:02:57.7]} 9... Na5
{[%clk 0:02:58.1]} 10. Qb4 {[%clk 0:02:56.5]} 10... Nc6 {[%clk 0:02:56.7]} 11.
Qb3 {[%clk 0:02:57]} 11... Na5 {[%clk 0:02:55.1]} 12. Qa3 {[%clk 0:02:57.3]}
12... Bf5 {[%clk 0:02:53.4]} 13. Ne5 {[%clk 0:02:52.8]} 13... Rc8 {[%clk
0:02:45.4]} 14. f3 {[%clk 0:02:51]} 14... a6 {[%clk 0:02:31.7]} 15. g4 {[%clk
0:02:48.7]} 15... Be6 {[%clk 0:02:31.6]} 16. h5 {[%clk 0:02:36.5]} 16... b5
{[%clk 0:02:31.7]} 17. Kf2 {[%clk 0:02:21.3]} 17... Nc4 {[%clk 0:02:29.7]} 18.
Bxc4 {[%clk 0:02:07.5]} 18... dxc4 {[%clk 0:02:29.7]} 19. Rad1 {[%clk
0:01:56.2]} 19... Qb6 {[%clk 0:02:16.8]} 20. Qb4 {[%clk 0:01:16.7]} 20... Rb8
{[%clk 0:02:15.1]} 21. h6 {[%clk 0:01:04.1]} 21... Bh8 {[%clk 0:02:14.3]} 22.
Qxe7 {[%clk 0:01:02.6]} 22... b4 {[%clk 0:02:00.9]} 23. Na4 {[%clk 0:00:51.8]}
23... Qa5 {[%clk 0:01:54.3]} 24. Nc6 {[%clk 0:00:21.6]} 24... Qxa4 {[%clk
0:01:47.9]} 25. Nxb8 {[%clk 0:00:21.4]} 25... Qxa2 {[%clk 0:01:40.9]} 26. Bd6
{[%clk 0:00:20.6]} 26... Rc8 {[%clk 0:01:33.9]} 27. Nc6 {[%clk 0:00:19.2]} 27...
Qxb2+ {[%clk 0:01:21.9]} 28. Kg3 {[%clk 0:00:19.4]} 28... Nd5 {[%clk 0:01:18.8]}
29. Qb7 {[%clk 0:00:10.3]} 29... Bf6 {[%clk 0:01:16]} 30. e4 {[%clk 0:00:09.7]}
30... Ne3 {[%clk 0:01:02.7]} 31. Rdg1 {[%clk 0:00:10.1]} 31... Re8 {[%clk
0:00:48.3]} 32. d5 {[%clk 0:00:09.7]} 32... Bc8 {[%clk 0:00:31.8]} 33. Qxb4
{[%clk 0:00:09.9]} 33... Qe2 {[%clk 0:00:29.5]} 34. Qe1 {[%clk 0:00:07.3]} 34...
Qd3 {[%clk 0:00:26.2]} 35. Qf2 {[%clk 0:00:07.4]} 35... c3 {[%clk 0:00:20.8]}
36. Nb4 {[%clk 0:00:04.6]} 36... Qd4 {[%clk 0:00:17.2]} 37. Re1 {[%clk
0:00:04.9]} 37... Nc4 {[%clk 0:00:15.3]} 38. Qxd4 {[%clk 0:00:04.6]} 38... Bxd4
{[%clk 0:00:16.2]} 39. Bf4 {[%clk 0:00:04.9]} 39... a5 {[%clk 0:00:16.5]} 40.
Nc2 {[%clk 0:00:05.4]} 40... Bc5 {[%clk 0:00:16.5]} 41. Rd1 {[%clk 0:00:05.7]}
41... a4 {[%clk 0:00:16.1]} 42. d6 {[%clk 0:00:06.1]} 42... Be6 {[%clk
0:00:15.6]} 43. Rd5 {[%clk 0:00:06.6]} 43... Bxd5 {[%clk 0:00:15.2]} 44. exd5
{[%clk 0:00:06.8]} 44... Bxd6 {[%clk 0:00:15.7]} 45. Bxd6 {[%clk 0:00:07]} 45...
Nxd6 {[%clk 0:00:16.6]} 46. Ra1 {[%clk 0:00:07.3]} 46... Ra8 {[%clk 0:00:16.8]}
47. Kf4 {[%clk 0:00:07.4]} 47... Kf8 {[%clk 0:00:17.4]} 48. Ke5 {[%clk
0:00:07.7]} 48... Ke7 {[%clk 0:00:17.7]} 49. Nb4 {[%clk 0:00:06]} 49... Kd7
{[%clk 0:00:17.5]} 50. Kd4 {[%clk 0:00:06.2]} 50... Nb5+ {[%clk 0:00:17.4]} 51.
Kc4 {[%clk 0:00:06.1]} 51... Ra5 {[%clk 0:00:13.4]} 52. Nc6 {[%clk 0:00:05.6]}
52... Nd6+ {[%clk 0:00:13.6]} 53. Kxc3 {[%clk 0:00:06]} 53... Rxd5 {[%clk
0:00:13.5]} 54. Nd4 {[%clk 0:00:06.6]} 54... Ra5 {[%clk 0:00:11.3]} 55. Kb4
{[%clk 0:00:06.1]} 55... Ra8 {[%clk 0:00:11.2]} 56. Rxa4 {[%clk 0:00:05.5]}
56... Rxa4+ {[%clk 0:00:11.4]} 57. Kxa4 {[%clk 0:00:06.4]} 57... f6 {[%clk
0:00:11.9]} 58. Kb4 {[%clk 0:00:06.1]} 58... Nf7 {[%clk 0:00:12.2]} 59. Kc5
{[%clk 0:00:05]} 59... Nxh6 {[%clk 0:00:12.4]} 60. Kd5 {[%clk 0:00:05.7]} 60...
Nf7 {[%clk 0:00:11.8]} 61. Ne6 {[%clk 0:00:06]} 61... Ke7 {[%clk 0:00:12.2]} 62.
f4 {[%clk 0:00:05.9]} 62... Nd6 {[%clk 0:00:08.6]} 63. Nd4 {[%clk 0:00:05.8]}
63... Ne8 {[%clk 0:00:08.5]} 64. Nc6+ {[%clk 0:00:05.6]} 64... Kf7 {[%clk
0:00:08.5]} 65. Nd4 {[%clk 0:00:06.5]} 65... Nc7+ {[%clk 0:00:08.3]} 66. Ke4
{[%clk 0:00:06.8]} 66... Ne6 {[%clk 0:00:08.3]} 67. Nf3 {[%clk 0:00:06.5]} 67...
Nc5+ {[%clk 0:00:08.4]} 68. Ke3 {[%clk 0:00:06.8]} 68... Ke6 {[%clk 0:00:08.2]}
69. f5+ {[%clk 0:00:06.8]} 69... gxf5 {[%clk 0:00:07.4]} 70. Nd4+ {[%clk
0:00:07.4]} 70... Ke5 {[%clk 0:00:07.4]} 71. Nxf5 {[%clk 0:00:08]} 71... Ne6
{[%clk 0:00:07.6]} 72. Nh4 {[%clk 0:00:07.1]} 72... Ng5 {[%clk 0:00:06.8]} 73.
Ng2 {[%clk 0:00:07.1]} 73... Nh3 {[%clk 0:00:06]} 74. Ne1 {[%clk 0:00:06.5]}
74... Ng5 {[%clk 0:00:06.2]} 75. Nd3+ {[%clk 0:00:06.4]} 75... Ke6 {[%clk
0:00:07.1]} 76. Nf4+ {[%clk 0:00:06.8]} 76... Kf7 {[%clk 0:00:08]} 77. Nd3
{[%clk 0:00:07.7]} 77... Ne6 {[%clk 0:00:08.3]} 78. Kf3 {[%clk 0:00:07.8]} 78...
Nd8 {[%clk 0:00:08.4]} 79. Kg3 {[%clk 0:00:08.1]} 79... Nc6 {[%clk 0:00:08.8]}
80. Nf4 {[%clk 0:00:08.6]} 80... Ne5 {[%clk 0:00:09]} 81. Nd5 {[%clk 0:00:09.1]}
81... Ng6 {[%clk 0:00:09.3]} 82. Ne3 {[%clk 0:00:09.5]} 82... Ke6 {[%clk
0:00:09.6]} 83. Nf5 {[%clk 0:00:09.8]} 83... Ke5 {[%clk 0:00:10.1]} 84. Ne3
{[%clk 0:00:09.4]} 84... Ke6 {[%clk 0:00:09.8]} 85. Nf5 {[%clk 0:00:09.2]} 85...
Ne7 {[%clk 0:00:10.1]} 86. Ng7+ {[%clk 0:00:08.6]} 86... Kf7 {[%clk 0:00:09.9]}
87. Nh5 {[%clk 0:00:09.5]} 87... Nd5 {[%clk 0:00:08.2]} 88. Kf3 {[%clk
0:00:09.2]} 88... Kg6 {[%clk 0:00:08.2]} 89. Ng3 {[%clk 0:00:09.6]} 89... Nc7
{[%clk 0:00:08.1]} 90. Ne4 {[%clk 0:00:09.5]} 90... Ne6 {[%clk 0:00:08.2]} 91.
Kg3 {[%clk 0:00:09.9]} 91... h6 {[%clk 0:00:08.4]} 92. Nd6 {[%clk 0:00:09.3]}
92... Ng5 {[%clk 0:00:08]} 93. Nf5 {[%clk 0:00:09.7]} 93... h5 {[%clk
0:00:08.2]} 94. Nh4+ {[%clk 0:00:09.3]} 94... Kh6 {[%clk 0:00:07.9]} 95. gxh5
{[%clk 0:00:09.7]} 95... Kxh5 {[%clk 0:00:07.9]} 96. Nf5 {[%clk 0:00:09]} 96...
Kg6 {[%clk 0:00:08]} 97. Ne3 {[%clk 0:00:08.5]} 97... Ne6 {[%clk 0:00:07]} 98.
Kf3 {[%clk 0:00:08.2]} 98... Nd4+ {[%clk 0:00:06.8]} 99. Kg3 {[%clk 0:00:08.4]}
99... Nf5+ {[%clk 0:00:06.4]} 100. Nxf5 {[%clk 0:00:08.7]} 100... Kxf5 {[%clk
0:00:07.3]} 101. Kf3 {[%clk 0:00:09.6]} 101... Ke5 {[%clk 0:00:08.2]} 102. Ke3
{[%clk 0:00:09.9]} 102... Kf5 {[%clk 0:00:08.7]} 103. Kf3 {[%clk 0:00:10.3]}
103... Kg5 {[%clk 0:00:09.6]} 104. Kg3 {[%clk 0:00:10.6]} 104... f5 {[%clk
0:00:10.5]} 105. Kf3 {[%clk 0:00:10.8]} 105... f4 {[%clk 0:00:11.4]} 106. Kf2
{[%clk 0:00:11.3]} 106... Kf5 {[%clk 0:00:12.3]} 107. Kf3 {[%clk 0:00:11.3]}
107... Kg5 {[%clk 0:00:12.4]} 108. Kf2 {[%clk 0:00:12.2]} 108... Kf5 {[%clk
0:00:13.3]} 109. Kf3 {[%clk 0:00:12.5]} 109... Ke5 {[%clk 0:00:14.2]} 110. Kf2
{[%clk 0:00:12.9]} 110... Ke4 {[%clk 0:00:15.1]} 111. Ke2 {[%clk 0:00:13]}
111... f3+ {[%clk 0:00:16]} 112. Kf2 {[%clk 0:00:13.9]} 112... Kf4 {[%clk
0:00:16.9]} 113. Kf1 {[%clk 0:00:14.2]} 113... Kg4 {[%clk 0:00:17.8]} 114. Kf2
{[%clk 0:00:15.1]} 114... Kf4 {[%clk 0:00:18.3]} 115. Kf1 {[%clk 0:00:16]}
115... Kg5 {[%clk 0:00:18.8]} 116. Kf2 {[%clk 0:00:16.9]} 116... Kg4 {[%clk
0:00:19.7]} 117. Kf1 {[%clk 0:00:17.3]} 117... Kh3 {[%clk 0:00:19.6]} 118. Kf2
{[%clk 0:00:18.2]} 118... Kg4 {[%clk 0:00:20.2]} 119. Kf1 {[%clk 0:00:18.8]}
119... Kg3 {[%clk 0:00:21.1]} 120. Kg1 {[%clk 0:00:18.4]} 120... Kf4 {[%clk
0:00:22]} 121. Kf2 {[%clk 0:00:18.5]} 121... Ke4 {[%clk 0:00:22.5]} 122. Kf1
{[%clk 0:00:18.7]} 122... Ke3 {[%clk 0:00:23]} 123. Ke1 {[%clk 0:00:18.6]}
123... Kd3 {[%clk 0:00:23.9]} 124. Kf2 {[%clk 0:00:18.7]} 124... Ke4 {[%clk
0:00:24.2]} 125. Kf1 {[%clk 0:00:18.9]} 125... Ke3 {[%clk 0:00:25.1]} 126. Ke1
{[%clk 0:00:18.8]} 126... f2+ {[%clk 0:00:26]} 127. Kf1 {[%clk 0:00:19.1]}
127... Kf3 {[%clk 0:00:26.9]} 1/2-1/2

[Event "*** SCC Grand Prix: Titled Tuesday Blitz"]
[Site "Chess.com"]
[Date "2020.10.06"]
[Round "7"]
[White "chessmachine14"]
[Black "kot60"]
[Result "1-0"]
[WhiteElo "2289"]
[BlackElo "2417"]
[TimeControl "180+1"]
[EndTime "11:14:58 PDT"]
[Termination "chessmachine14 won by resignation"]

1. e4 {[%clk 0:03:00.9]} 1... e5 {[%clk 0:02:59.7]} 2. Nf3 {[%clk 0:03:00.4]}
2... Nc6 {[%clk 0:02:59.8]} 3. Bb5 {[%clk 0:03:00.2]} 3... a6 {[%clk 0:02:59.6]}
4. Ba4 {[%clk 0:03:00.1]} 4... d6 {[%clk 0:03:00]} 5. c3 {[%clk 0:02:56.7]} 5...
Ne7 {[%clk 0:03:00]} 6. d4 {[%clk 0:02:56.3]} 6... Ng6 {[%clk 0:03:00]} 7. h4
{[%clk 0:02:55]} 7... Bd7 {[%clk 0:02:56.4]} 8. h5 {[%clk 0:02:53.4]} 8... Nge7
{[%clk 0:02:56.2]} 9. h6 {[%clk 0:02:52.9]} 9... g6 {[%clk 0:02:53.2]} 10. Bg5
{[%clk 0:02:50.5]} 10... Qb8 {[%clk 0:02:49]} 11. Bf6 {[%clk 0:02:47]} 11... Rg8
{[%clk 0:02:47.9]} 12. dxe5 {[%clk 0:02:43.6]} 12... Nxe5 {[%clk 0:02:43.6]} 13.
Nxe5 {[%clk 0:02:39.2]} 13... Bxa4 {[%clk 0:02:41.5]} 14. Qxa4+ {[%clk
0:02:38.8]} 14... b5 {[%clk 0:02:41.6]} 15. Qd4 {[%clk 0:02:15.6]} 15... c5
{[%clk 0:02:34.7]} 16. Qe3 {[%clk 0:02:02.8]} 16... dxe5 {[%clk 0:02:34.6]} 17.
Qxc5 {[%clk 0:02:01]} 17... Ra7 {[%clk 0:02:32.7]} 18. Nd2 {[%clk 0:01:54.3]}
18... Rd7 {[%clk 0:02:22.7]} 19. O-O-O {[%clk 0:01:53.8]} 19... Kd8 {[%clk
0:02:22.5]} 20. Nf3 {[%clk 0:01:47.5]} 1-0

[Event "*** SCC Grand Prix: Titled Tuesday Blitz"]
[Site "Chess.com"]
[Date "2020.10.06"]
[Round "7"]
[White "vanea_03"]
[Black "Mikhail_Golubev"]
[Result "1/2-1/2"]
[WhiteElo "2689"]
[BlackElo "2522"]
[TimeControl "180+1"]
[EndTime "11:15:48 PDT"]
[Termination "Game drawn by repetition"]

1. c4 {[%clk 0:02:59.5]} 1... g6 {[%clk 0:02:59.4]} 2. d4 {[%clk 0:02:58.2]}
2... Bg7 {[%clk 0:03:00.3]} 3. e4 {[%clk 0:02:58.1]} 3... d6 {[%clk 0:02:59.3]}
4. Nc3 {[%clk 0:02:58]} 4... Nf6 {[%clk 0:02:58.7]} 5. Nge2 {[%clk 0:02:56.4]}
5... Nbd7 {[%clk 0:02:55.3]} 6. Ng3 {[%clk 0:02:54.4]} 6... h5 {[%clk
0:02:53.4]} 7. Be2 {[%clk 0:02:53]} 7... h4 {[%clk 0:02:52.2]} 8. Nf1 {[%clk
0:02:52.8]} 8... e5 {[%clk 0:02:50.1]} 9. d5 {[%clk 0:02:52.6]} 9... a5 {[%clk
0:02:39.3]} 10. Be3 {[%clk 0:02:51.6]} 10... Nc5 {[%clk 0:02:35.4]} 11. Nd2
{[%clk 0:02:51.2]} 11... Nh5 {[%clk 0:02:33.9]} 12. g3 {[%clk 0:02:44.2]} 12...
Nf6 {[%clk 0:02:24.1]} 13. g4 {[%clk 0:02:25.1]} 13... Nh7 {[%clk 0:02:22.6]}
14. Na4 {[%clk 0:02:01.1]} 14... Nxa4 {[%clk 0:02:08.5]} 15. Qxa4+ {[%clk
0:02:02]} 15... Bd7 {[%clk 0:02:08.6]} 16. Qa3 {[%clk 0:01:57.5]} 16... b6
{[%clk 0:02:04.6]} 17. h3 {[%clk 0:01:50.5]} 17... Bf6 {[%clk 0:01:56.5]} 18.
Nf3 {[%clk 0:01:51]} 18... Ng5 {[%clk 0:01:52.4]} 19. Nd2 {[%clk 0:01:51.1]}
19... Nh7 {[%clk 0:01:47.1]} 20. Nf3 {[%clk 0:01:39]} 20... Ng5 {[%clk
0:01:46.6]} 21. Nd2 {[%clk 0:01:30.8]} 21... Nh7 {[%clk 0:01:45.9]} 1/2-1/2

[Event "*** SCC Grand Prix: Titled Tuesday Blitz"]
[Site "Chess.com"]
[Date "2020.10.06"]
[Round "7"]
[White "blitzking1729"]
[Black "Tooweak2slow03"]
[Result "1-0"]
[WhiteElo "2558"]
[BlackElo "2764"]
[TimeControl "180+1"]
[EndTime "11:15:52 PDT"]
[Termination "blitzking1729 won by resignation"]

1. d4 {[%clk 0:03:00.9]} 1... e6 {[%clk 0:02:57.8]} 2. Nf3 {[%clk 0:02:59.6]}
2... f5 {[%clk 0:02:58.2]} 3. Bg5 {[%clk 0:02:58.6]} 3... Be7 {[%clk 0:02:58.2]}
4. Bxe7 {[%clk 0:02:58.2]} 4... Qxe7 {[%clk 0:02:59.1]} 5. Nbd2 {[%clk
0:02:56.5]} 5... Nf6 {[%clk 0:02:58.2]} 6. e3 {[%clk 0:02:56.2]} 6... b6 {[%clk
0:02:58.5]} 7. Bd3 {[%clk 0:02:52.4]} 7... Bb7 {[%clk 0:02:58.9]} 8. O-O {[%clk
0:02:52.8]} 8... O-O {[%clk 0:02:59.1]} 9. Qe2 {[%clk 0:02:52.1]} 9... Ne4
{[%clk 0:02:58.6]} 10. Ne1 {[%clk 0:02:45.6]} 10... d6 {[%clk 0:02:58.1]} 11. f3
{[%clk 0:02:44.9]} 11... Nxd2 {[%clk 0:02:58.4]} 12. Qxd2 {[%clk 0:02:45.8]}
12... Nd7 {[%clk 0:02:58.6]} 13. c4 {[%clk 0:02:33.3]} 13... e5 {[%clk
0:02:56.7]} 14. Nc2 {[%clk 0:02:33.3]} 14... Rae8 {[%clk 0:02:56.4]} 15. Rae1
{[%clk 0:02:32.4]} 15... c5 {[%clk 0:02:56.4]} 16. d5 {[%clk 0:02:32.3]} 16...
Nf6 {[%clk 0:02:56.3]} 17. Bxf5 {[%clk 0:02:30.7]} 17... Nxd5 {[%clk 0:02:12.7]}
18. Bxh7+ {[%clk 0:02:26]} 18... Kxh7 {[%clk 0:02:11.9]} 19. cxd5 {[%clk
0:02:25.9]} 19... e4 {[%clk 0:02:09.6]} 20. f4 {[%clk 0:02:19.9]} 20... Rf5
{[%clk 0:02:08.2]} 21. Rd1 {[%clk 0:02:15.9]} 21... Rxd5 {[%clk 0:02:06.1]} 22.
Qe2 {[%clk 0:02:15.2]} 22... Rxd1 {[%clk 0:02:03.7]} 23. Rxd1 {[%clk 0:02:14.9]}
23... d5 {[%clk 0:02:03.2]} 24. Na3 {[%clk 0:02:10]} 24... Qf6 {[%clk
0:02:00.9]} 25. Qh5+ {[%clk 0:02:06.7]} 25... Qh6 {[%clk 0:01:53]} 26. Qxe8
{[%clk 0:02:06.1]} 26... Qh4 {[%clk 0:01:36.3]} 27. Qd7 {[%clk 0:02:00.2]} 27...
Ba6 {[%clk 0:01:34.7]} 28. Qh3 {[%clk 0:01:56.7]} 1-0

[Event "*** SCC Grand Prix: Titled Tuesday Blitz"]
[Site "Chess.com"]
[Date "2020.10.06"]
[Round "7"]
[White "ThePatrick27"]
[Black "Grandelicious"]
[Result "0-1"]
[WhiteElo "2550"]
[BlackElo "2785"]
[TimeControl "180+1"]
[EndTime "11:16:07 PDT"]
[Termination "Grandelicious won by resignation"]

1. d4 {[%clk 0:03:00.9]} 1... d5 {[%clk 0:02:59.5]} 2. c4 {[%clk 0:03:00.5]}
2... e6 {[%clk 0:02:59.9]} 3. Nf3 {[%clk 0:03:00.8]} 3... a6 {[%clk 0:03:00.2]}
4. cxd5 {[%clk 0:02:58.2]} 4... exd5 {[%clk 0:03:01.1]} 5. Nc3 {[%clk 0:02:58]}
5... h6 {[%clk 0:03:01.2]} 6. Bf4 {[%clk 0:02:57.1]} 6... Nf6 {[%clk 0:03:01.2]}
7. h3 {[%clk 0:02:55.8]} 7... Bd6 {[%clk 0:03:00.9]} 8. Bxd6 {[%clk 0:02:52.6]}
8... Qxd6 {[%clk 0:03:01.8]} 9. e3 {[%clk 0:02:53.2]} 9... Bf5 {[%clk
0:03:01.9]} 10. Bd3 {[%clk 0:02:52.8]} 10... Bxd3 {[%clk 0:03:02.1]} 11. Qxd3
{[%clk 0:02:53.7]} 11... Nbd7 {[%clk 0:03:02.7]} 12. Rc1 {[%clk 0:02:53.1]}
12... O-O {[%clk 0:03:02]} 13. O-O {[%clk 0:02:53.2]} 13... Rfe8 {[%clk
0:03:00.3]} 14. b4 {[%clk 0:02:52]} 14... c6 {[%clk 0:02:55.8]} 15. a3 {[%clk
0:02:34.5]} 15... b5 {[%clk 0:02:52.2]} 16. Nb1 {[%clk 0:02:25.8]} 16... Nb6
{[%clk 0:02:51]} 17. Ne5 {[%clk 0:02:18.9]} 17... Nc4 {[%clk 0:02:49.4]} 18. f4
{[%clk 0:01:37.7]} 18... Ne4 {[%clk 0:02:47.2]} 19. Rf3 {[%clk 0:01:25.2]} 19...
f6 {[%clk 0:02:41.4]} 20. Nxc4 {[%clk 0:01:25.2]} 20... bxc4 {[%clk 0:02:41.5]}
21. Qc2 {[%clk 0:01:06.9]} 21... a5 {[%clk 0:02:41.6]} 22. bxa5 {[%clk
0:01:01.6]} 22... Rxa5 {[%clk 0:02:42.5]} 23. f5 {[%clk 0:00:56]} 23... Rb8
{[%clk 0:02:37.8]} 24. Nc3 {[%clk 0:00:53.5]} 24... Nxc3 {[%clk 0:02:32.3]} 25.
Qxc3 {[%clk 0:00:53.7]} 25... Qxa3 {[%clk 0:02:32.1]} 26. Qe1 {[%clk 0:00:53.3]}
26... Rab5 {[%clk 0:02:22.7]} 27. e4 {[%clk 0:00:51.8]} 27... Qxc1 {[%clk
0:02:22.7]} 28. Qxc1 {[%clk 0:00:50.9]} 28... Rb1 {[%clk 0:02:23.2]} 0-1